[Event "13th Palmanova Festival A 2024"]
[Site "Palmanova"]
[Date "2025.01.02"]
[Round "8.7"]
[White "Cina`, Vittorio"]
[Black "Weidenhoefer, Max"]
[Result "1-0"]
[ECO "E18"]
[WhiteElo "2325"]
[BlackElo "1987"]
[Annotator "TA"]
[PlyCount "55"]
[EventDate "2024.12.27"]
[EventCountry "ITA"]
[SourceTitle "playchess.com"]
[Source "ChessBase"]
[SourceQuality "1"]
[TimeControl "6000+30"]

{[%evp 16,55,9,19,25,39,95,95,214,217,259,257,244,258,237,241,271,268,308,289,316,301,331,333,311,326,365,365,379,352,404,387,451,441,448,437,742,655,809,807,790,812]} 1. d4 {[%emt 0:01:06]} Nf6 {[%emt 0:01:30]} 2. c4 {[%emt 0:00:05]} b6 {[%emt 0:00:05]} 3. Nf3 {[%emt 0:00:38]} Bb7 {[%emt 0:00:10]} 4. g3 {[%emt 0:00:06]} e6 {[%emt 0:01:05]} 5. Bg2 {[%emt 0:00:07]} Be7 {[%emt 0:00:14]} 6. O-O {[%emt 0:00:12]} d5 {[%emt 0:00:44]} 7. Ne5 {[%emt 0:02:10]} O-O {[%emt 0:08:42]} 8. Nc3 {[%emt 0:00:42]} Nbd7 {[%emt 0:05:41]} 9. Bf4 {[%emt 0:02:02]} Rc8 {[%emt 0:15:09]} 10. Qa4 {[%emt 0:05:12]} Nxe5 {[%emt 0:38:43]} ({Better is} 10... c5 $14) 11. dxe5 $16 {[%emt 0:02:41]} (11. Bxe5 $6 a6 $14) 11... Nh5 {[%emt 0:04:22]} (11... Ne4 $16 {was called for.}) 12. Be3 $18 {[%emt 0:04:03]} (12. Qxa7 Bc6 13. Nb5 (13. cxd5 $2 Ra8 $19) 13... Nxf4 14. gxf4 Bd7 $14) 12... g6 {[%emt 0:07:22]} 13. Rfd1 {[%emt 0:01:45]} (13. Qxa7 Bc6 14. Nb5 (14. cxd5 Ra8 $17) 14... Ng7 $14) 13... c6 {[%emt 0:04:10]} 14. Qxa7 {[%emt 0:00:34]} Rb8 {[%emt 0:00:41]} 15. Bxb6 {[%emt 0:03:32]} Qc8 {[%emt 0:00:41] Strongly threatening ...Ra8.} 16. Bc5 {[%emt 0:01:10]} Bxc5 {[%emt 0:03:21]} 17. Qxc5 {[%emt 0:00:07]} Ba6 {[%emt 0:00:09]} 18. b3 {[%emt 0:01:27]} Ng7 {[%emt 0:05:21]} 19. Rd2 {[%emt 0:04:51]} Qb7 {[%emt 0:03:31]} 20. Rad1 {[%emt 0:02:11]} Qb4 {[%emt 0:02:06]} 21. Qxb4 {[%emt 0:03:06]} ({Not} 21. Qxc6 Bb7 22. Nxd5 exd5 $16) 21... Rxb4 {[%emt 0:00:03]} 22. Na4 {[%emt 0:02:09]} Ra8 {[%emt 0:05:29]} 23. Nc5 {[%emt 0:01:42]} Ne8 {[%emt 0:01:59]} 24. cxd5 {[%emt 0:03:19]} cxd5 {[%emt 0:00:02]} 25. e4 {[%emt 0:00:27]} dxe4 {[%emt 0:00:52]} (25... Nc7 $142 26. exd5 exd5 27. Bxd5 Nxd5 28. Rxd5 Kg7) 26. Bxe4 {[%emt 0:00:43]} Ra7 {[%emt 0:00:08]} 27. Rd8 {[%emt 0:00:22]} Bb5 {[%emt 0:00:37]} 28. a4 {[%emt 0:00:14]} 1-0

[Event "13th Palmanova Festival A 2024"]
[Site "Palmanova"]
[Date "2025.01.02"]
[Round "8.8"]
[White "Maglioni, Leonardo"]
[Black "Kalosha, Zhiulien Oleksii"]
[Result "0-1"]
[ECO "D35"]
[WhiteElo "1971"]
[BlackElo "2306"]
[Annotator "TA"]
[PlyCount "74"]
[EventDate "2024.12.27"]
[EventCountry "ITA"]
[SourceTitle "playchess.com"]
[Source "ChessBase"]
[SourceQuality "1"]
[TimeControl "6000+30"]

{[%evp 21,74,0,0,-5,0,0,0,0,0,0,0,-2,0,0,0,0,0,0,7,0,16,-8,0,-12,0,-21,0,-12,0,-41,0,-31,-37,-25,-25,-34,-29,-24,-31,-98,-109,-156,-157,-238,-239,-277,-278,-273,-245,-383,-378,-409,-412,-695,-690]} 1. d4 {[%emt 0:00:33]} d5 {[%emt 0:00:33]} 2. c4 {[%emt 0:00:11]} e6 {[%emt 0:00:08]} 3. Nf3 {[%emt 0:00:06]} Nf6 {[%emt 0:01:09]} 4. cxd5 {[%emt 0:00:08]} exd5 {[%emt 0:00:13]} 5. Nc3 {[%emt 0:00:03]} c6 {[%emt 0:01:04]} 6. Bf4 {[%emt 0:00:06]} Bd6 {[%emt 0:00:48]} 7. Bxd6 {[%emt 0:05:50]} Qxd6 {[%emt 0:00:19]} 8. e3 {[%emt 0:00:29]} Bf5 {[%emt 0:00:59]} 9. Bd3 {[%emt 0:02:10]} Bxd3 {[%emt 0:00:21]} 10. Qxd3 {[%emt 0:00:32]} Nbd7 {[%emt 0:00:26]} 11. O-O {[%emt 0:01:16]} O-O {[%emt 0:00:09]} 12. Rfc1 {[%emt 0:02:41]} a5 {[%emt 0:00:46]} 13. Rab1 {[%emt 0:09:12]} h6 {[%emt 0:03:15][%cal Bh7h6,Bh6h5,Bh5h4][%mdl 32]} 14. Nh4 {[%emt 0:08:03]} Rfe8 {[%emt 0:04:04]} 15. Nf5 {[%emt 0:01:59]} Qe6 {[%emt 0:00:19]} 16. Ng3 {[%emt 0:02:05]} g6 {[%emt 0:09:36]} 17. Rc2 {[%emt 0:09:07]} Kg7 {[%emt 0:05:32]} 18. Re1 {[%emt 0:01:48]} h5 {[%emt 0:02:10]} 19. h3 {[%emt 0:02:40]} h4 {[%emt 0:08:39]} 20. Nf1 {[%emt 0:00:28]} Qd6 {[%emt 0:03:02]} 21. f3 {[%emt 0:04:22]} Rad8 {[%emt 0:01:50]} 22. Rd2 {[%emt 0:02:31]} Nh5 {[%emt 0:07:30]} 23. Qe2 {[%emt 0:06:06]} Nf8 {[%emt 0:03:56][%cal Bd7f8,Bf8e6,Be6g5][%mdl 32]} 24. Qf2 {[%emt 0:01:24]} Qf6 {[%emt 0:00:45]} 25. e4 {[%emt 0:11:08]} dxe4 {[%emt 0:01:03]} 26. fxe4 {[%emt 0:01:00]} Qxf2+ {[%emt 0:01:38]} 27. Kxf2 {[%emt 0:00:09]} Ne6 {[%emt 0:02:39]} 28. Red1 {[%emt 0:08:23]} Ng5 {[%emt 0:02:22][%cal Ob7b5]} 29. Re1 {[%emt 0:00:39]} Nf4 {[%emt 0:05:22]} 30. Nh2 {[%emt 0:04:12] [#]} (30. e5 $15) 30... Nfe6 $1 $17 {[%emt 0:01:26][%cal Bf4e6,Be6c5,Bc5e4,Be4d6,Bd6c4][%mdl 32] Black has more active pieces.} 31. Red1 {[%emt 0:00:35] [#]} ({White should play} 31. d5) 31... b5 $1 {[%emt 0:00:58] And now ...b4 would win.} 32. d5 {[%emt 0:07:06]} (32. Ke3 $17 {was worth a try.}) 32... Nc5 $19 {[%emt 0:00:23]} 33. Kg1 {[%emt 0:00:51]} b4 {[%emt 0:03:32]} (33... Ncxe4 34. Nxe4 Nxe4 35. Rd3 $17) (33... Ngxe4 34. Rc2 $17) 34. Ne2 {[%emt 0:00:31]} Ncxe4 {[%emt 0:00:58]} ({Less strong is} 34... Rxe4 35. dxc6 Rc8 (35... Rxd2 36. Rxd2 Rc4 37. b3 $18) 36. Nf3 $15) ({But not} 34... Ngxe4 35. Rd4 $19) 35. Rd4 {[%emt 0:00:12]} (35. Rc2 $142) 35... c5 {[%emt 0:00:38]} 36. R4d3 {[%emt 0:00:11]} Nd6 {[%emt 0:01:20]} 37. R3d2 {[%emt 0:00:50]} (37. Re1 $142) 37... Nc4 {[%emt 0:00:27]} 0-1

[Event "13th Palmanova Festival A 2024"]
[Site "Palmanova"]
[Date "2025.01.02"]
[Round "8.9"]
[White "Knudsen, Simon"]
[Black "Adharsh K"]
[Result "1-0"]
[ECO "B30"]
[WhiteElo "2303"]
[BlackElo "2235"]
[Annotator "TA"]
[PlyCount "24"]
[EventDate "2024.12.27"]
[EventCountry "ITA"]
[SourceTitle "playchess.com"]
[Source "ChessBase"]
[SourceQuality "1"]
[TimeControl "6000+30"]

{[%evp 10,24,17,30,37,32,47,28,30,8,69,70,84,60,92,46,101]} 1. e4 {[%emt 0:00:05]} c5 {[%emt 0:00:27]} 2. Nf3 {[%emt 0:01:18]} Nc6 {[%emt 0:00:13]} 3. Bb5 {[%emt 0:00:08]} e6 {[%emt 0:00:23]} 4. O-O {[%emt 0:00:11]} Nge7 {[%emt 0:00:19]} 5. d4 {[%emt 0:00:17]} cxd4 {[%emt 0:06:47]} 6. Nxd4 {[%emt 0:00:09]} Ng6 {[%emt 0:06:35]} 7. Be2 {[%emt 0:00:22]} Be7 {[%emt 0:02:24]} 8. c4 {[%emt 0:00:36]} O-O {[%emt 0:01:18]} 9. Nc3 {[%emt 0:00:14]} a6 {[%emt 0:04:09]} (9... Nxd4 $11 10. Qxd4 b6) 10. Be3 $14 {[%emt 0:08:09]} d6 {[%emt 0:00:54]} 11. Qd2 {[%emt 0:07:48]} Bd7 {[%emt 0:00:06]} 12. Rad1 {[%emt 0:00:06] White is more active.} (12. Nb3 $16) 12... Rc8 {[%emt 1:22:55]} ({Better is} 12... Nxd4 $14 13. Bxd4 (13. Qxd4 Bc6 $14) 13... b5) 1-0

[Event "13th Palmanova Festival A 2024"]
[Site "Palmanova"]
[Date "2025.01.02"]
[Round "8.10"]
[White "Stankovic, Milos"]
[Black "Zoncu, Roberto Alessio"]
[Result "1-0"]
[ECO "C02"]
[WhiteElo "2462"]
[BlackElo "2165"]
[Annotator "TA"]
[PlyCount "124"]
[EventDate "2024.12.27"]
[EventCountry "ITA"]
[SourceTitle "playchess.com"]
[Source "ChessBase"]
[SourceQuality "1"]
[TimeControl "6000+30"]

{[%evp 28,124,-37,-25,-31,-74,-67,-155,-147,-154,-154,-151,-148,-145,-56,-52,-47,-75,0,0,0,0,12,0,91,83,160,138,132,50,87,73,236,173,179,173,284,135,144,0,145,152,114,116,211,200,323,314,453,445,431,210,225,220,219,155,150,150,203,213,207,206,204,162,152,143,227,206,350,0,223,152,171,166,238,228,279,166,317,323,330,334,389,288,276,0,388,378,414,349,419,407,444,465,525,370,545,426,358]} 1. e4 {[%emt 0:05:10]} e6 {[%emt 0:00:07]} 2. d4 {[%emt 0:00:31]} d5 {[%emt 0:00:06]} 3. e5 {[%emt 0:00:30]} c5 {[%emt 0:00:06]} 4. c3 {[%emt 0:00:31]} Nc6 {[%emt 0:00:07]} 5. Nf3 {[%emt 0:00:30]} Qb6 {[%emt 0:00:08]} 6. Bd3 {[%emt 0:00:34]} cxd4 {[%emt 0:00:34]} 7. O-O {[%emt 0:02:25]} Bd7 {[%emt 0:03:25]} 8. Re1 {[%emt 0:04:34]} Nge7 {[%emt 0:11:46]} 9. h4 {[%emt 0:02:02]} Rc8 {[%emt 0:08:36]} 10. a3 {[%emt 0:06:26]} a6 {[%emt 0:07:24]} 11. b4 {[%emt 0:08:45]} dxc3 {[%emt 0:22:15]} 12. Nxc3 {[%emt 0:00:42]} Nd4 {[%emt 0:12:14]} 13. Bb2 {[%emt 0:02:13]} Nxf3+ {[%emt 0:08:48]} 14. Qxf3 {[%emt 0:01:39]} Qd8 {[%emt 0:04:03]} (14... Qd4 $2 15. Nb5 $18) 15. h5 {[%emt 0:06:30]} g6 {[%emt 0:04:33]} 16. Qf4 {[%emt 0:06:03]} Rg8 {[%emt 0:04:18]} 17. Rad1 {[%emt 0:05:06]} (17. Re3 $15) 17... gxh5 $17 {[%emt 0:06:19]} 18. Bxh7 {[%emt 0:10:40]} Rg4 {[%emt 0:03:34]} 19. Qf3 {[%emt 0:05:21]} Rcc4 {[%emt 0:06:43]} 20. Ne2 {[%emt 0:02:18]} Rg7 {[%emt 0:03:42]} (20... Ng6 $1 $17 {[%cal Rg6h4] And now ...Nh4 would win.} 21. Bxg6 fxg6) 21. Bd3 $15 {[%emt 0:02:25]} Rcg4 {[%emt 0:00:05]} 22. Nf4 {[%emt 0:00:34]} Qb6 {[%emt 0:00:44]} (22... Ba4 $1 $17 {[%cal Ra4d1]} 23. Rb1 R7g5) 23. Bf1 $11 {[%emt 0:01:16]} R7g5 {[%emt 0:01:48]} 24. Bd4 {[%emt 0:00:41]} Qc7 {[%emt 0:00:29]} 25. Nxh5 $1 {[%emt 0:00:58]} Ng8 {[%emt 0:00:23]} (25... Bg7 $1 $11 {keeps the balance.}) 26. Be3 $1 $16 {[%emt 0:04:49]} Rg6 {[%emt 0:00:38]} ({Better is} 26... Qc3) 27. Nf4 {[%emt 0:00:13]} Rg7 {[%emt 0:00:21]} 28. Bd4 {[%emt 0:01:11]} (28. g3 $16) 28... Be7 {[%emt 0:00:30]} 29. g3 {[%emt 0:00:27]} R4g5 $2 {[%emt 0:00:40]} (29... Bc6 $16) 30. Rc1 {[%emt 0:00:29]} Bc6 {[%emt 0:00:28]} 31. Bd3 {[%emt 0:01:05]} Nh6 {[%emt 0:00:30]} (31... Rg4 32. Ne2 Nh6) 32. Nh5 {[%emt 0:09:46]} (32. Qh1 $18) 32... Rg8 $16 {[%emt 0:00:15]} 33. Be3 {[%emt 0:00:59]} (33. Bh7 $1 $16) 33... Ng4 {[%emt 0:00:40]} (33... Qxe5 $1 $11 34. Bxg5 Qxg5) 34. Bxg5 $16 {[%emt 0:01:27]} Rxg5 {[%emt 0:00:11]} 35. Nf6+ {[%emt 0:00:26]} Nxf6 {[%emt 0:00:33]} (35... Bxf6 $16 36. exf6 Qb6) 36. exf6 $18 {[%emt 0:00:06]} Bd6 {[%emt 0:00:09]} (36... Bd8 $142 37. a4 Qd6) 37. Kg2 $1 $18 {[%emt 0:02:25]} Qb6 {[%emt 0:01:12]} (37... Kd8 $142 38. Rh1 Rg8) 38. Rh1 $18 {[%emt 0:01:36]} Qd4 {[%emt 0:00:20] [#]} 39. Bxa6 {[%emt 0:01:30]} (39. Rh8+ $142 $1 {[%mdl 512]} Kd7 40. Rh7) 39... Qb2 $18 {[%emt 0:00:36]} 40. Be2 {[%emt 0:00:50]} Rf5 {[%emt 0:00:30]} 41. Qg4 {[%emt 0:05:34]} Qxf6 {[%emt 0:00:00]} 42. Bf3 {[%emt 0:00:00]} Kd7 {[%emt 0:00:00]} (42... Rg5 $16 43. Qh4 Ke7) 43. Rh5 $18 {[%emt 0:00:00]} Rxh5 {[%emt 0:00:00]} 44. Qxh5 {[%emt 0:00:00]} Be5 {[%emt 0:00:00]} 45. Rc2 {[%emt 0:00:00]} Ba4 {[%emt 0:00:00]} 46. Re2 {[%emt 0:00:00]} Bd6 {[%emt 0:00:00]} (46... Bd4 $16 47. Qh4 Qxh4 48. gxh4 Bg7) 47. Re3 {[%emt 0:00:00]} Bc2 {[%emt 0:00:00]} (47... Qg7 $142 48. Re1 Bb3) 48. Re2 {[%emt 0:00:00]} Ba4 $1 {[%emt 0:00:23]} 49. Qh4 {[%emt 0:00:00]} Qg7 {[%emt 0:01:20]} 50. Rd2 {[%emt 0:00:00]} Be5 {[%emt 0:01:50]} (50... Bb3 $142 51. Be2 Kc7) 51. Qc4 $18 {[%emt 0:00:00]} Qg5 {[%emt 0:01:17]} 52. Qd3 {[%emt 0:00:00]} (52. Rd3 $142 Bd6 53. Qd4) 52... Bf4 $2 {[%emt 0:00:44]} (52... Bb3 {keeps fighting.} 53. Qb5+ Kd8) 53. Re2 $18 {[%emt 0:00:00]} Bd6 {[%emt 0:00:17]} 54. Qd4 {[%emt 0:00:00]} Bb5 {[%emt 0:01:04]} 55. Rc2 {[%emt 0:00:00]} Ba4 {[%emt 0:00:37] [#]} 56. Re2 {[%emt 0:00:00]} (56. Ra2 $142 $1) 56... Bb5 $1 $18 {[%emt 0:00:28]} 57. Re1 {[%emt 0:00:00]} Bc7 {[%emt 0:00:38]} 58. Be2 {[%emt 0:00:02]} Bxe2 {[%emt 0:00:28]} 59. Rxe2 {[%emt 0:00:06]} f5 {[%emt 0:00:25]} 60. Qd3 {[%emt 0:01:44]} f4 {[%emt 0:00:38]} 61. Qh7+ {[%emt 0:00:29]} Kc8 {[%emt 0:01:01]} (61... Qe7 $142 62. Qxe7+ Kxe7) 62. Rc2 {[%emt 0:17:52]} Qe5 1-0

[Event "13th Palmanova Festival A 2024"]
[Site "Palmanova"]
[Date "2025.01.02"]
[Round "8.11"]
[White "Gkoumas, Georgios"]
[Black "Casadio, Niccolo`"]
[Result "1-0"]
[ECO "B88"]
[WhiteElo "2449"]
[BlackElo "2275"]
[Annotator "TA"]
[PlyCount "59"]
[EventDate "2024.12.27"]
[EventCountry "ITA"]
[SourceTitle "playchess.com"]
[Source "ChessBase"]
[SourceQuality "1"]
[TimeControl "6000+30"]

{[%evp 16,59,5,8,12,-12,0,0,0,0,0,0,0,0,0,0,0,-9,10,0,49,25,114,106,118,120,125,126,202,196,452,429,512,488,522,522,501,526,1354,1343,1616,1618,2354,2341,1703,1701]} 1. e4 {[%emt 0:03:16]} c5 {[%emt 0:00:09]} 2. Nf3 {[%emt 0:00:05]} d6 {[%emt 0:00:05]} 3. d4 {[%emt 0:00:04]} cxd4 {[%emt 0:00:04]} 4. Nxd4 {[%emt 0:00:05]} Nf6 {[%emt 0:00:05]} 5. Nc3 {[%emt 0:00:05]} a6 {[%emt 0:00:04]} 6. Bc4 {[%emt 0:00:09]} e6 {[%emt 0:00:12]} 7. a4 {[%emt 0:00:07]} Nc6 {[%emt 0:05:49]} 8. O-O {[%emt 0:00:50]} Be7 {[%emt 0:01:49]} 9. Be3 {[%emt 0:00:30]} Bd7 {[%emt 0:01:39]} 10. h3 {[%emt 0:02:05]} O-O {[%emt 0:01:04]} 11. f4 $1 {[%emt 0:02:21]} Rc8 {[%emt 0:07:25]} 12. Bd3 {[%emt 0:00:15]} Qb6 {[%emt 0:04:48]} 13. a5 {[%emt 0:33:18]} Qc7 {[%emt 0:14:47]} 14. Nxc6 {[%emt 0:07:58]} Bxc6 {[%emt 0:00:32]} 15. Qe2 {[%emt 0:03:20]} Nd7 {[%emt 0:01:18]} 16. Na4 {[%emt 0:18:03]} Bf6 {[%emt 0:07:38][%cal Oc6a4]} 17. Nb6 {[%emt 0:01:12]} Rcd8 {[%emt 0:00:37]} (17... Bxb2 $11 18. Nxc8 Rxc8) 18. c3 {[%emt 0:01:58][%cal Bc2c3,Bc3c4][%mdl 32]} e5 {[%emt 0:04:12]} (18... Nc5 $11 {keeps the balance.}) 19. f5 $16 {[%emt 0:01:58] White is much more active.} Qb8 {[%emt 0:01:54]} 20. Nxd7 {[%emt 0:11:00]} Rxd7 {[%emt 0:00:04]} 21. c4 {[%emt 0:00:05]} Bd8 {[%emt 0:01:36]} (21... Rc7 $16 22. b4 Bd7) 22. b4 $18 {[%emt 0:01:58][%cal Bb2b4,Bb4b5][%mdl 32] Hoping for b5.} b5 $2 {[%emt 0:01:53]} (22... Rc7 {might work better.} 23. b5 Be8) 23. axb6 {[%emt 0:02:14]} Bxb6 {[%emt 0:01:33]} 24. Rxa6 {[%emt 0:00:12]} Bxe3+ {[%emt 0:00:45]} 25. Qxe3 {[%emt 0:00:02]} Rc8 {[%emt 0:00:08]} 26. f6 {[%emt 0:03:00]} gxf6 {[%emt 0:00:04]} 27. b5 {[%emt 0:00:15]} Bb7 {[%emt 0:00:06] [#]} 28. Qh6 $1 {[%emt 0:00:36][%cal Of1f3] White wants to mate with Rf3!.} f5 {[%emt 0:04:39]} (28... Kh8 29. Qxf6+) 29. Rxf5 {[%emt 0:01:24]} f6 {[%emt 0:00:08] Dodges Rg5+} 30. Qxf6 {[%emt 0:00:18]} 1-0

[Event "13th Palmanova Festival A 2024"]
[Site "Palmanova"]
[Date "2025.01.02"]
[Round "8.12"]
[White "Shefer, Uri"]
[Black "Marn, Jan"]
[Result "0-1"]
[ECO "D90"]
[WhiteElo "2210"]
[BlackElo "2400"]
[Annotator "TA"]
[PlyCount "118"]
[EventDate "2024.12.27"]
[EventCountry "ITA"]
[SourceTitle "playchess.com"]
[Source "ChessBase"]
[SourceQuality "1"]
[TimeControl "6000+30"]

{[%evp 16,118,11,6,18,31,25,22,8,0,0,-72,-69,-83,-75,-79,-83,-64,-77,-81,-72,-114,-104,-101,-89,-111,-96,-86,-90,-91,-77,-88,-76,-97,-89,-92,-67,-70,-40,-54,-50,-113,-131,-96,-107,-135,-130,-133,-135,-136,-90,-149,-162,-165,-160,-166,-150,-150,-150,-150,-150,-150,-87,-87,-87,-167,-152,-480,-1106,-2405,-3059,-1739,-4083,-8659,-7949,-9130,-8994,-8501,-7919,-8811,-6991,-6095,-6083,-4882,-2914,-29970,-29971,-29972,-29972,-29972,-29973,-29974,-10335,-29974,-29975,-29976,-29977,-29977,-29977,-29981,-29982,-29982,-29983,-29987,-29988]} 1. d4 {[%emt 0:00:15]} Nf6 {[%emt 0:07:53]} 2. c4 {[%emt 0:00:03]} g6 {[%emt 0:00:06]} 3. Nc3 {[%emt 0:00:04]} d5 {[%emt 0:00:04]} 4. Nf3 {[%emt 0:00:08]} Bg7 {[%emt 0:00:08]} 5. h4 {[%emt 0:00:03]} dxc4 {[%emt 0:05:34]} 6. e4 {[%emt 0:00:31]} c5 {[%emt 0:00:04]} 7. d5 {[%emt 0:00:40]} b5 {[%emt 0:00:23]} 8. h5 {[%emt 0:00:48]} Nxh5 {[%emt 0:00:07]} (8... O-O $5) 9. Nxb5 {[%emt 0:00:40]} (9. e5 Bg4 10. Rh4 (10. Nxb5 Nd7 $17) 10... Bxf3 11. Qxf3 Nd7 $17) 9... Qa5+ {[%emt 0:02:32]} 10. Nc3 $1 {[%emt 0:00:16]} Nd7 {[%emt 0:10:55]} 11. Bd2 {[%emt 0:11:17]} (11. Bxc4 $2 Bxc3+ 12. Kf1 Ba6 $19) 11... Rb8 {[%emt 0:00:54]} 12. Qc2 {[%emt 0:12:34]} Ba6 {[%emt 0:04:25]} 13. Be2 {[%emt 0:13:33]} (13. Rc1 $11) 13... Nf4 $1 $17 {[%emt 0:02:20]} 14. Bxf4 {[%emt 0:15:33]} Rxb2 $1 {[%emt 0:00:15]} 15. Qxb2 {[%emt 0:00:09]} Bxc3+ {[%emt 0:00:07]} (15... Qxc3+ $6 16. Qxc3 Bxc3+ 17. Nd2 Bxa1 18. Rh3 $11) 16. Bd2 {[%emt 0:00:22]} Bxb2 {[%emt 0:00:06]} 17. Bxa5 {[%emt 0:00:02]} Bxa1 {[%emt 0:00:07]} 18. O-O {[%emt 0:02:08]} Bg7 {[%emt 0:03:38]} 19. Rc1 {[%emt 0:06:09]} O-O {[%emt 0:06:07]} 20. Nd2 {[%emt 0:09:07]} Rb8 {[%emt 0:06:35]} 21. Bxc4 {[%emt 0:00:52]} Bxc4 {[%emt 0:08:10]} 22. Nxc4 {[%emt 0:00:16]} Bd4 {[%emt 0:12:41]} 23. Kf1 {[%emt 0:08:50]} f6 {[%emt 0:02:56]} 24. Bc3 {[%emt 0:05:05]} Bxc3 {[%emt 0:01:11]} 25. Rxc3 {[%emt 0:01:27]} Rb1+ {[%emt 0:06:43]} 26. Ke2 {[%emt 0:00:06]} Nb6 {[%emt 0:00:08]} 27. Ke3 {[%emt 0:08:56]} Kf7 {[%emt 0:07:15]} 28. Nxb6 {[%emt 0:04:29]} (28. Nd2 $15 Re1+ 29. Kd3) 28... axb6 $17 {[%emt 0:00:06]} 29. a4 {[%emt 0:00:14]} h5 {[%emt 0:06:42]} 30. a5 {[%emt 0:00:20]} bxa5 {[%emt 0:00:04]} 31. Rxc5 {[%emt 0:00:07]} a4 {[%emt 0:00:07]} 32. Ra5 {[%emt 0:00:22]} Rb3+ {[%emt 0:00:10]} (32... Ra1 $142 {...h4 is the strong threat.} 33. Ra7 a3) 33. Ke2 {[%emt 0:00:53]} (33. Kd4 $142) 33... a3 $17 {[%emt 0:00:09]} 34. Ra7 {[%emt 0:02:08]} Ke8 $1 {[%emt 0:00:14]} 35. f4 {[%emt 0:03:21]} Rb2+ {[%emt 0:04:54]} 36. Kf3 {[%emt 0:00:23] [#]} a2 $1 {[%emt 0:00:04]} 37. e5 {[%emt 0:01:22]} fxe5 {[%emt 0:00:10]} 38. fxe5 {[%emt 0:00:07]} Rd2 {[%emt 0:05:13]} (38... g5 $142 39. g3 Kd8) 39. d6 $17 {[%emt 0:02:27]} exd6 {[%emt 0:01:19]} 40. exd6 {[%emt 0:00:13]} Kd8 {[%emt 0:08:21]} 41. Kf4 $2 {[%emt 0:00:00]} (41. Kg3 $17 {nothing else works.}) 41... Rxg2 $19 {[%emt 0:00:00]} 42. Ke5 {[%emt 0:00:00]} h4 {[%emt 0:00:00]} 43. Ra8+ {[%emt 0:00:00]} Kd7 {[%emt 0:00:00]} 44. Ra7+ {[%emt 0:00:00]} Kc6 {[%emt 0:00:00]} 45. d7 {[%emt 0:00:00] [#]} a1=Q+ $1 {[%emt 0:00:00]} 46. Rxa1 {[%emt 0:00:00]} Kxd7 {[%emt 0:00:00]} 47. Kd5 {[%emt 0:00:00]} Rg5+ {[%emt 0:00:00]} 48. Ke4 {[%emt 0:00:00]} Ke6 {[%emt 0:00:00]} 49. Ra6+ {[%emt 0:00:00]} Kf7 {[%emt 0:00:00]} 50. Kf4 {[%emt 0:00:00]} Rg3 {[%emt 0:00:00]} 51. Ra1 {[%emt 0:00:00]} Kf6 {[%emt 0:00:00]} 52. Ra6+ {[%emt 0:00:00]} Kg7 {[%emt 0:00:00]} 53. Ra8 {[%emt 0:00:00]} Rg1 {[%emt 0:00:00]} (53... g5+ $142 54. Kf5 h3 55. Ra7+ Kh6 56. Re7 h2 57. Re8 Rg2 (57... h1=B 58. Rh8+ Kg7 59. Rxh1 $11) (57... Rf3+ $2 58. Kg4 $19) 58. Rh8+ Kg7 59. Rh3 g4 60. Rh5 g3 61. Kg4 Rg1 62. Rh4 h1=Q (62... h1=R {leads to mate.} 63. Rxh1 Rxh1 64. Kxg3 Rf1 65. Kg2 Rf6 66. Kh1 Kh6 67. Kg2 Kh5 68. Kg3 Rf8 69. Kh2 Kh4 70. Kg2 Kg4 71. Kh1 Kh3 72. Kg1 Kg3 73. Kh1 Rf1#) 63. Rxh1 Rxh1 64. Kxg3 Rf1 65. Kh2 Kg6 66. Kg3 Rf6 67. Kh3 Kh5 68. Kg3 Rf8 69. Kh2 Kh4 70. Kg2 Kg4 71. Kh1 Kh3 72. Kg1 Kg3 73. Kh1 Rf1#) 54. Rb8 {[%emt 0:00:00]} h3 {[%emt 0:00:00]} 55. Rb2 {[%emt 0:00:00]} g5+ {[%emt 0:00:00]} 56. Kf5 {[%emt 0:00:00]} g4 {[%emt 0:00:00]} 57. Kg5 {[%emt 0:00:00]} g3 {[%emt 0:00:00]} 58. Rb7+ {[%emt 0:00:00]} Kf8 {[%emt 0:00:00]} 59. Kf6 {[%emt 0:00:00]} Rf1+ {[%emt 0:00:00]} 0-1